[Event "Early-Titled-Tuesday-Blitz-February-20-2024"]
[Site "Chess.com"]
[Date "2024.02.20"]
[Round "9"]
[White "szachuspl"]
[Black "mjelcic"]
[Result "1/2-1/2"]
[WhiteElo "2507"]
[BlackElo "2231"]
[TimeControl "180+1"]
[EndTime "9:47:09 PST"]
[Termination "Game drawn by repetition"]

1. d4 {[%clk 0:03:00.9]} 1... b6 {[%clk 0:02:43.1]} 2. c4 {[%clk 0:02:59.7]}
2... Bb7 {[%clk 0:02:43.3]} 3. Nc3 {[%clk 0:02:58.6]} 3... e6 {[%clk 0:02:43.8]}
4. f3 {[%clk 0:02:58.7]} 4... Nf6 {[%clk 0:02:44]} 5. e4 {[%clk 0:02:59.1]} 5...
c5 {[%clk 0:02:43.9]} 6. d5 {[%clk 0:02:59.3]} 6... d6 {[%clk 0:02:39.6]} 7. Be3
{[%clk 0:02:58.5]} 7... e5 {[%clk 0:02:39.4]} 8. Bd3 {[%clk 0:02:58.1]} 8... Be7
{[%clk 0:02:39.2]} 9. Nge2 {[%clk 0:02:58.6]} 9... a6 {[%clk 0:02:35.3]} 10. a4
{[%clk 0:02:57.9]} 10... Bc8 {[%clk 0:02:32.2]} 11. O-O {[%clk 0:02:57.1]} 11...
Bd7 {[%clk 0:02:32.3]} 12. Ra3 {[%clk 0:02:55.5]} 12... Qc7 {[%clk 0:02:26.3]}
13. h3 {[%clk 0:02:51.9]} 13... Qb7 {[%clk 0:02:25.4]} 14. f4 {[%clk 0:02:52]}
14... b5 {[%clk 0:02:19.8]} 15. axb5 {[%clk 0:02:51.5]} 15... axb5 {[%clk
0:02:20.7]} 16. cxb5 {[%clk 0:02:45.3]} 16... O-O {[%clk 0:01:50.7]} 17. fxe5
{[%clk 0:02:45.2]} 17... dxe5 {[%clk 0:01:50.3]} 18. Bc4 {[%clk 0:02:45.7]}
18... Bd6 {[%clk 0:01:49.9]} 19. Qa1 {[%clk 0:02:42.2]} 19... Rxa3 {[%clk
0:01:46.1]} 20. bxa3 {[%clk 0:02:41.9]} 20... Nh5 {[%clk 0:01:36]} 21. a4 {[%clk
0:02:40.5]} 21... f5 {[%clk 0:01:33.9]} 22. exf5 {[%clk 0:02:40.6]} 22... Rxf5
{[%clk 0:01:32]} 23. Rxf5 {[%clk 0:02:40.3]} 23... Bxf5 {[%clk 0:01:32.7]} 24.
g4 {[%clk 0:02:39.9]} 24... Qf7 {[%clk 0:01:22.2]} 25. gxf5 {[%clk 0:02:33.5]}
25... Qxf5 {[%clk 0:01:18.8]} 26. Qf1 {[%clk 0:02:32.6]} 26... Qc2 {[%clk
0:01:04.7]} 27. a5 {[%clk 0:02:32.2]} 27... e4 {[%clk 0:01:02.8]} 28. a6 {[%clk
0:02:28.9]} 28... Ng3 {[%clk 0:00:59.2]} 29. Qf2 {[%clk 0:02:15.6]} 29... Nxe2+
{[%clk 0:00:53.4]} 30. Bxe2 {[%clk 0:02:15.4]} 30... Qxc3 {[%clk 0:00:52]} 31.
a7 {[%clk 0:02:15.9]} 31... Qa1+ {[%clk 0:00:49.7]} 32. Kg2 {[%clk 0:02:15.9]}
32... Qxa7 {[%clk 0:00:49.8]} 33. Qf5 {[%clk 0:02:13.2]} 33... Qe7 {[%clk
0:00:41.1]} 34. Qc8+ {[%clk 0:02:06.5]} 34... Qf8 {[%clk 0:00:38.2]} 35. Qe6+
{[%clk 0:02:05.5]} 35... Kh8 {[%clk 0:00:35.3]} 36. Qxe4 {[%clk 0:02:05.7]}
36... Nd7 {[%clk 0:00:33.7]} 37. Bg4 {[%clk 0:02:04.6]} 37... Ne5 {[%clk
0:00:33.3]} 38. Qf5 {[%clk 0:02:02.5]} 38... Qe8 {[%clk 0:00:28.3]} 39. Qc8
{[%clk 0:01:58.2]} 39... Qxc8 {[%clk 0:00:21.7]} 40. Bxc8 {[%clk 0:01:59.1]}
40... Nc4 {[%clk 0:00:20.1]} 41. Bc1 {[%clk 0:01:57.1]} 41... Kg8 {[%clk
0:00:20.2]} 42. Be6+ {[%clk 0:01:56.3]} 42... Kf8 {[%clk 0:00:19.4]} 43. Kf3
{[%clk 0:01:56.9]} 43... Ke7 {[%clk 0:00:19]} 44. Ke4 {[%clk 0:01:56.8]} 44...
g6 {[%clk 0:00:18.7]} 45. Bg5+ {[%clk 0:01:55.7]} 45... Ke8 {[%clk 0:00:18.1]}
46. Bf6 {[%clk 0:01:56.3]} 46... Be7 {[%clk 0:00:17.4]} 47. d6 {[%clk
0:01:48.3]} 47... Nxd6+ {[%clk 0:00:16.7]} 48. Kd5 {[%clk 0:01:48.7]} 48... Nxb5
{[%clk 0:00:16.6]} 49. Bb2 {[%clk 0:01:46.8]} 49... Nc7+ {[%clk 0:00:14.5]} 50.
Ke5 {[%clk 0:01:47.3]} 50... Nxe6 {[%clk 0:00:14.2]} 51. Kxe6 {[%clk 0:01:47.6]}
51... c4 {[%clk 0:00:14.3]} 52. Bc3 {[%clk 0:01:47.3]} 52... g5 {[%clk
0:00:10.2]} 53. Kd5 {[%clk 0:01:45.4]} 53... h5 {[%clk 0:00:10.2]} 54. Kxc4
{[%clk 0:01:45.7]} 54... g4 {[%clk 0:00:11.1]} 55. hxg4 {[%clk 0:01:45.6]} 55...
hxg4 {[%clk 0:00:09.2]} 56. Be5 {[%clk 0:01:43.7]} 56... Kf7 {[%clk 0:00:09.1]}
57. Kd5 {[%clk 0:01:43.8]} 57... Kg6 {[%clk 0:00:09.2]} 58. Ke4 {[%clk 0:01:44]}
58... Kg5 {[%clk 0:00:09.4]} 59. Bg3 {[%clk 0:01:44.2]} 59... Bc5 {[%clk
0:00:08.8]} 60. Kd3 {[%clk 0:01:43.9]} 60... Bg1 {[%clk 0:00:09.6]} 61. Ke2
{[%clk 0:01:44]} 61... Kf5 {[%clk 0:00:09.8]} 62. Kf1 {[%clk 0:01:44.2]} 62...
Bd4 {[%clk 0:00:09.7]} 63. Kg2 {[%clk 0:01:44.7]} 63... Ke4 {[%clk 0:00:10.6]}
64. Bh4 {[%clk 0:01:44.4]} 64... Be5 {[%clk 0:00:10]} 65. Bg5 {[%clk 0:01:43]}
65... Kf5 {[%clk 0:00:06.6]} 66. Bh6 {[%clk 0:01:43.1]} 66... Bf4 {[%clk
0:00:06.8]} 67. Bg7 {[%clk 0:01:43.2]} 67... Ke4 {[%clk 0:00:05.8]} 68. Bf8
{[%clk 0:01:43.7]} 68... Kf5 {[%clk 0:00:06.4]} 69. Be7 {[%clk 0:01:43.7]} 69...
Ke4 {[%clk 0:00:07.3]} 70. Bf8 {[%clk 0:01:44.3]} 70... Kf5 {[%clk 0:00:07.8]}
71. Bb4 {[%clk 0:01:45.1]} 71... Be3 {[%clk 0:00:08.1]} 72. Be1 {[%clk 0:01:46]}
72... Ke4 {[%clk 0:00:08.4]} 73. Kg3 {[%clk 0:01:46.1]} 73... Kf5 {[%clk
0:00:09.3]} 74. Bc3 {[%clk 0:01:45.8]} 74... Bf4+ {[%clk 0:00:09.8]} 75. Kg2
{[%clk 0:01:46.2]} 75... Bg5 {[%clk 0:00:10]} 76. Bd4 {[%clk 0:01:46.6]} 76...
Be7 {[%clk 0:00:10.5]} 77. Bb6 {[%clk 0:01:46.6]} 77... Bd6 {[%clk 0:00:11]} 78.
Bd4 {[%clk 0:01:46.3]} 78... Ke4 {[%clk 0:00:11.5]} 79. Bb6 {[%clk 0:01:46.3]}
79... Kf5 {[%clk 0:00:11.6]} 80. Ba7 {[%clk 0:01:46.4]} 80... Kg5 {[%clk
0:00:11.8]} 81. Bb6 {[%clk 0:01:46.9]} 81... Kf5 {[%clk 0:00:12.3]} 1/2-1/2

[Event "Early-Titled-Tuesday-Blitz-February-20-2024"]
[Site "Chess.com"]
[Date "2024.02.20"]
[Round "9"]
[White "artin10862"]
[Black "MyDream003"]
[Result "1-0"]
[WhiteElo "2917"]
[BlackElo "2745"]
[TimeControl "180+1"]
[EndTime "9:47:10 PST"]
[Termination "artin10862 won by checkmate"]

1. d4 {[%clk 0:02:58.9]} 1... Nf6 {[%clk 0:02:58.4]} 2. c4 {[%clk 0:02:58.9]}
2... e6 {[%clk 0:02:57.4]} 3. Nc3 {[%clk 0:02:58.9]} 3... Bb4 {[%clk 0:02:57.2]}
4. Bd2 {[%clk 0:02:52.8]} 4... O-O {[%clk 0:02:51.4]} 5. e3 {[%clk 0:02:52.2]}
5... b6 {[%clk 0:02:49]} 6. Nge2 {[%clk 0:02:51.9]} 6... Bb7 {[%clk 0:02:46.7]}
7. a3 {[%clk 0:02:52.3]} 7... Be7 {[%clk 0:02:45.5]} 8. Ng3 {[%clk 0:02:52.4]}
8... d5 {[%clk 0:02:45.5]} 9. cxd5 {[%clk 0:02:52]} 9... exd5 {[%clk 0:02:46.4]}
10. Nf5 {[%clk 0:02:50.8]} 10... Ba6 {[%clk 0:02:31.5]} 11. Bxa6 {[%clk
0:02:21.1]} 11... Nxa6 {[%clk 0:02:32.4]} 12. Qa4 {[%clk 0:02:18.1]} 12... Nb8
{[%clk 0:02:29.7]} 13. O-O {[%clk 0:02:15.7]} 13... c6 {[%clk 0:02:14.7]} 14.
Rac1 {[%clk 0:02:10.9]} 14... Re8 {[%clk 0:02:11]} 15. Nxe7+ {[%clk 0:02:10.6]}
15... Qxe7 {[%clk 0:02:10.9]} 16. f3 {[%clk 0:02:09.8]} 16... Qb7 {[%clk
0:01:50]} 17. Ne2 {[%clk 0:02:04.9]} 17... a5 {[%clk 0:01:20.7]} 18. Rc3 {[%clk
0:01:55.4]} 18... Ra7 {[%clk 0:01:19.8]} 19. Rfc1 {[%clk 0:01:51.1]} 19... Qa6
{[%clk 0:01:18.3]} 20. Ng3 {[%clk 0:01:36.6]} 20... h5 {[%clk 0:01:15.9]} 21.
Be1 {[%clk 0:01:28.4]} 21... h4 {[%clk 0:01:10.8]} 22. Nf5 {[%clk 0:01:22.9]}
22... h3 {[%clk 0:01:10.8]} 23. Qc2 {[%clk 0:01:02.5]} 23... g6 {[%clk
0:01:02.2]} 24. Bh4 {[%clk 0:00:53]} 24... Nh7 {[%clk 0:00:52.1]} 25. Nh6+
{[%clk 0:00:45.4]} 25... Kg7 {[%clk 0:00:49.8]} 26. Ng4 {[%clk 0:00:45.4]} 26...
Qc8 {[%clk 0:00:40]} 27. Bg3 {[%clk 0:00:37.6]} 27... Rae7 {[%clk 0:00:27.3]}
28. gxh3 {[%clk 0:00:33.2]} 28... Ng5 {[%clk 0:00:23]} 29. Kg2 {[%clk
0:00:30.9]} 29... f5 {[%clk 0:00:07.6]} 30. Ne5 {[%clk 0:00:19.8]} 30... f4
{[%clk 0:00:07.7]} 31. Qxg6+ {[%clk 0:00:19.6]} 31... Kf8 {[%clk 0:00:08]} 32.
Qf6+ {[%clk 0:00:13.5]} 32... Rf7 {[%clk 0:00:04.1]} 33. Ng6+ {[%clk 0:00:13.3]}
33... Kg8 {[%clk 0:00:04.2]} 34. Qh8# {[%clk 0:00:14.2]} 1-0

[Event "Early-Titled-Tuesday-Blitz-February-20-2024"]
[Site "Chess.com"]
[Date "2024.02.20"]
[Round "9"]
[White "wild3000"]
[Black "Viacheslav92"]
[Result "0-1"]
[WhiteElo "2426"]
[BlackElo "2552"]
[TimeControl "180+1"]
[EndTime "9:47:10 PST"]
[Termination "Viacheslav92 won by checkmate"]

1. d4 {[%clk 0:02:47.5]} 1... Nf6 {[%clk 0:02:53.3]} 2. Nf3 {[%clk 0:02:46.5]}
2... e6 {[%clk 0:02:50.9]} 3. e3 {[%clk 0:02:46.5]} 3... c5 {[%clk 0:02:51.1]}
4. Be2 {[%clk 0:02:47]} 4... cxd4 {[%clk 0:02:50.9]} 5. exd4 {[%clk 0:02:46.3]}
5... b6 {[%clk 0:02:51.8]} 6. O-O {[%clk 0:02:46.1]} 6... Bb7 {[%clk 0:02:52.7]}
7. c4 {[%clk 0:02:46.3]} 7... Be7 {[%clk 0:02:44.4]} 8. Nc3 {[%clk 0:02:46.1]}
8... O-O {[%clk 0:02:45]} 9. d5 {[%clk 0:02:45.1]} 9... exd5 {[%clk 0:02:40.6]}
10. cxd5 {[%clk 0:02:39.6]} 10... Bc5 {[%clk 0:02:39.3]} 11. Bg5 {[%clk
0:02:37.2]} 11... h6 {[%clk 0:02:38.9]} 12. Bh4 {[%clk 0:02:37.3]} 12... d6
{[%clk 0:02:37.1]} 13. Ne4 {[%clk 0:02:24.7]} 13... Nbd7 {[%clk 0:02:36]} 14. a3
{[%clk 0:02:08.2]} 14... a5 {[%clk 0:02:34.4]} 15. Bb5 {[%clk 0:01:55.5]} 15...
Bc8 {[%clk 0:02:22.5]} 16. Bxd7 {[%clk 0:01:52.2]} 16... Bxd7 {[%clk 0:02:21.7]}
17. Nxf6+ {[%clk 0:01:41.5]} 17... gxf6 {[%clk 0:02:21.1]} 18. b4 {[%clk
0:01:35.6]} 18... axb4 {[%clk 0:02:17.5]} 19. axb4 {[%clk 0:01:35.7]} 19... Rxa1
{[%clk 0:02:18.4]} 20. Qxa1 {[%clk 0:01:35.5]} 20... Bxb4 {[%clk 0:02:14.4]} 21.
Bxf6 {[%clk 0:01:34]} 21... Qa8 {[%clk 0:02:14.6]} 22. Qd4 {[%clk 0:01:22.7]}
22... Bc5 {[%clk 0:02:13.8]} 23. Qf4 {[%clk 0:01:21.6]} 23... Kh7 {[%clk
0:02:09.5]} 24. Qe4+ {[%clk 0:00:59.1]} 24... Kg8 {[%clk 0:02:06.1]} 25. Ra1
{[%clk 0:00:51.1]} 25... Qe8 {[%clk 0:01:57.7]} 26. Qh4 {[%clk 0:00:50.6]} 26...
Kh7 {[%clk 0:01:47.7]} 27. Re1 {[%clk 0:00:38.4]} 27... Qa8 {[%clk 0:01:42.8]}
28. Ng5+ {[%clk 0:00:35.2]} 28... Kg6 {[%clk 0:01:41.6]} 29. Qg3 {[%clk
0:00:19.6]} 29... Qa3 {[%clk 0:01:19.9]} 30. Bc3 {[%clk 0:00:13.9]} 30... hxg5
{[%clk 0:01:14]} 31. h4 {[%clk 0:00:14.5]} 31... f6 {[%clk 0:01:01.9]} 32. Re7
{[%clk 0:00:10.7]} 32... Qc1+ {[%clk 0:00:58.2]} 33. Kh2 {[%clk 0:00:10.6]}
33... Qf4 {[%clk 0:00:56.3]} 34. Qxf4 {[%clk 0:00:10.7]} 34... gxf4 {[%clk
0:00:57.2]} 35. Rxd7 {[%clk 0:00:10.9]} 35... Re8 {[%clk 0:00:39.7]} 36. Kh3
{[%clk 0:00:09.5]} 36... Re2 {[%clk 0:00:37.8]} 37. f3 {[%clk 0:00:09.4]} 37...
Rc2 {[%clk 0:00:35]} 38. Ba1 {[%clk 0:00:09.4]} 38... Rc1 {[%clk 0:00:30.3]} 39.
Bb2 {[%clk 0:00:09.1]} 39... Rb1 {[%clk 0:00:29.8]} 40. Bc3 {[%clk 0:00:09.3]}
40... Kf5 {[%clk 0:00:29.3]} 41. Rf7 {[%clk 0:00:08.9]} 41... Rh1# {[%clk
0:00:28.1]} 0-1

[Event "Early-Titled-Tuesday-Blitz-February-20-2024"]
[Site "Chess.com"]
[Date "2024.02.20"]
[Round "9"]
[White "IM_ArthurDW08"]
[Black "Rud_Makarian"]
[Result "1-0"]
[WhiteElo "2827"]
[BlackElo "3070"]
[TimeControl "180+1"]
[EndTime "9:47:13 PST"]
[Termination "IM_ArthurDW08 won by checkmate"]

1. e4 {[%clk 0:03:00.9]} 1... c5 {[%clk 0:02:56.9]} 2. Nf3 {[%clk 0:03:01]} 2...
d6 {[%clk 0:02:57.3]} 3. d4 {[%clk 0:03:01.6]} 3... cxd4 {[%clk 0:02:58.2]} 4.
Nxd4 {[%clk 0:03:02.2]} 4... Nf6 {[%clk 0:02:58.9]} 5. Nc3 {[%clk 0:03:02.8]}
5... a6 {[%clk 0:02:59.6]} 6. h4 {[%clk 0:03:03]} 6... h6 {[%clk 0:02:39.7]} 7.
Bc4 {[%clk 0:02:57.2]} 7... e6 {[%clk 0:02:36.1]} 8. a3 {[%clk 0:02:57.4]} 8...
Qc7 {[%clk 0:02:33.5]} 9. Ba2 {[%clk 0:02:57]} 9... Nc6 {[%clk 0:02:34.1]} 10.
Be3 {[%clk 0:02:56.2]} 10... Be7 {[%clk 0:02:23.7]} 11. Qe2 {[%clk 0:02:49.7]}
11... Bd7 {[%clk 0:02:00.9]} 12. O-O-O {[%clk 0:02:44.6]} 12... Rc8 {[%clk
0:01:58.1]} 13. g4 {[%clk 0:02:39.2]} 13... Ne5 {[%clk 0:01:37.8]} 14. g5 {[%clk
0:02:37.7]} 14... Nfg4 {[%clk 0:01:37.8]} 15. Bd2 {[%clk 0:02:30.6]} 15... Qb6
{[%clk 0:01:30.3]} 16. gxh6 {[%clk 0:02:01.8]} 16... gxh6 {[%clk 0:01:17.8]} 17.
f3 {[%clk 0:01:50.2]} 17... Qxd4 {[%clk 0:01:14.9]} 18. fxg4 {[%clk 0:01:50.3]}
18... Qc5 {[%clk 0:01:03]} 19. Be3 {[%clk 0:01:39.1]} 19... Qa5 {[%clk
0:01:01.7]} 20. Bd4 {[%clk 0:01:34.9]} 20... b5 {[%clk 0:01:01.5]} 21. g5 {[%clk
0:01:24.2]} 21... b4 {[%clk 0:00:51.8]} 22. axb4 {[%clk 0:01:23]} 22... Qxb4
{[%clk 0:00:52.4]} 23. Bxe5 {[%clk 0:00:53.8]} 23... dxe5 {[%clk 0:00:51.6]} 24.
Qxa6 {[%clk 0:00:54.3]} 24... Rb8 {[%clk 0:00:44]} 25. Bb3 {[%clk 0:00:30.5]}
25... Qb7 {[%clk 0:00:20.9]} 26. Qa5 {[%clk 0:00:18.2]} 26... O-O {[%clk
0:00:12.2]} 27. Qxe5 {[%clk 0:00:15.2]} 27... Kh7 {[%clk 0:00:10.6]} 28. gxh6
{[%clk 0:00:11.5]} 28... Rg8 {[%clk 0:00:11.2]} 29. Rhf1 {[%clk 0:00:10.3]}
29... Be8 {[%clk 0:00:08.3]} 30. Rg1 {[%clk 0:00:06.4]} 30... Bf8 {[%clk
0:00:04.5]} 31. Rxg8 {[%clk 0:00:06.5]} 31... Kxg8 {[%clk 0:00:05.4]} 32. Rg1+
{[%clk 0:00:05.8]} 32... Kh7 {[%clk 0:00:06]} 33. Rg7+ {[%clk 0:00:06.5]} 33...
Kxh6 {[%clk 0:00:05.9]} 34. Qg5# {[%clk 0:00:06.3]} 1-0

[Event "Early-Titled-Tuesday-Blitz-February-20-2024"]
[Site "Chess.com"]
[Date "2024.02.20"]
[Round "9"]
[White "Shuvalov"]
[Black "David_George21"]
[Result "0-1"]
[WhiteElo "2510"]
[BlackElo "2356"]
[TimeControl "180+1"]
[EndTime "9:47:13 PST"]
[Termination "David_George21 won by resignation"]

1. d4 {[%clk 0:03:00.9]} 1... Nf6 {[%clk 0:02:58.9]} 2. c4 {[%clk 0:03:00.9]}
2... e6 {[%clk 0:02:58.6]} 3. Nc3 {[%clk 0:03:00.5]} 3... Bb4 {[%clk 0:02:58.5]}
4. e3 {[%clk 0:03:00.1]} 4... O-O {[%clk 0:02:57.6]} 5. a3 {[%clk 0:03:00.3]}
5... Bxc3+ {[%clk 0:02:57.1]} 6. bxc3 {[%clk 0:03:01.2]} 6... c5 {[%clk
0:02:51.9]} 7. Ne2 {[%clk 0:03:01.4]} 7... d6 {[%clk 0:02:48.7]} 8. Ng3 {[%clk
0:03:01.5]} 8... Nc6 {[%clk 0:02:48.5]} 9. Ra2 {[%clk 0:03:00.4]} 9... b6 {[%clk
0:02:48]} 10. e4 {[%clk 0:03:00.2]} 10... e5 {[%clk 0:02:47]} 11. d5 {[%clk
0:02:54.5]} 11... Na5 {[%clk 0:02:44.1]} 12. Bd3 {[%clk 0:02:49.5]} 12... Ba6
{[%clk 0:02:35.5]} 13. Qe2 {[%clk 0:02:45.3]} 13... Qd7 {[%clk 0:02:35.5]} 14.
a4 {[%clk 0:02:30.2]} 14... h6 {[%clk 0:02:21.5]} 15. Nf5 {[%clk 0:02:26.9]}
15... Kh7 {[%clk 0:02:18.3]} 16. g4 {[%clk 0:02:19.5]} 16... Ng8 {[%clk
0:02:02]} 17. g5 {[%clk 0:02:17.6]} 17... g6 {[%clk 0:01:58.2]} 18. Nxh6 {[%clk
0:02:16.1]} 18... Nxh6 {[%clk 0:01:56.5]} 19. gxh6 {[%clk 0:02:17]} 19... f5
{[%clk 0:01:53.2]} 20. Bg5 {[%clk 0:02:13]} 20... fxe4 {[%clk 0:01:41.5]} 21.
Qxe4 {[%clk 0:02:08.6]} 21... Rf5 {[%clk 0:01:24.3]} 22. h4 {[%clk 0:02:05.9]}
22... Raf8 {[%clk 0:01:13.8]} 23. Rg1 {[%clk 0:01:58.5]} 23... Kh8 {[%clk
0:01:00.4]} 24. Be3 {[%clk 0:01:53.8]} 24... Qf7 {[%clk 0:00:54.3]} 25. h5
{[%clk 0:01:27.6]} 25... Rxh5 {[%clk 0:00:20.3]} 26. Rxg6 {[%clk 0:01:25.9]}
26... Bc8 {[%clk 0:00:19.2]} 27. Rg7 {[%clk 0:01:19.2]} 27... Bf5 {[%clk
0:00:10.6]} 28. Rxf7 {[%clk 0:01:18.8]} 28... Rxf7 {[%clk 0:00:11.5]} 29. Qg2
{[%clk 0:01:16]} 29... Bxd3 {[%clk 0:00:10.7]} 30. Qg4 {[%clk 0:01:03.8]} 30...
Rh1+ {[%clk 0:00:07.8]} 31. Kd2 {[%clk 0:01:03.6]} 31... e4 {[%clk 0:00:08.2]}
32. Qd1 {[%clk 0:00:14.6]} 32... Nxc4+ {[%clk 0:00:07.8]} 33. Kc1 {[%clk
0:00:15.1]} 33... Rxd1+ {[%clk 0:00:08.4]} 34. Kxd1 {[%clk 0:00:16]} 34... Nxe3+
{[%clk 0:00:08.9]} 35. fxe3 {[%clk 0:00:16.3]} 35... Rf1+ {[%clk 0:00:09.5]} 36.
Kd2 {[%clk 0:00:15.8]} 36... Rf2+ {[%clk 0:00:10.2]} 37. Kc1 {[%clk 0:00:16.4]}
37... Rxa2 {[%clk 0:00:10.9]} 0-1

[Event "Early-Titled-Tuesday-Blitz-February-20-2024"]
[Site "Chess.com"]
[Date "2024.02.20"]
[Round "9"]
[White "GelmanAlexander"]
[Black "Skatchkov_V"]
[Result "0-1"]
[WhiteElo "2739"]
[BlackElo "2630"]
[TimeControl "180+1"]
[EndTime "9:47:15 PST"]
[Termination "Skatchkov_V won on time"]

1. d4 {[%clk 0:03:00.9]} 1... Nf6 {[%clk 0:02:59.7]} 2. Nc3 {[%clk 0:03:00.6]}
2... d5 {[%clk 0:02:59.5]} 3. Bf4 {[%clk 0:03:00.6]} 3... a6 {[%clk 0:02:59.1]}
4. e3 {[%clk 0:03:00.7]} 4... c5 {[%clk 0:02:59.4]} 5. Nf3 {[%clk 0:03:00.6]}
5... Nc6 {[%clk 0:02:57.7]} 6. Ne5 {[%clk 0:03:00.8]} 6... Qb6 {[%clk
0:02:45.9]} 7. Nxc6 {[%clk 0:02:45.4]} 7... Qxc6 {[%clk 0:02:37]} 8. Be2 {[%clk
0:02:24.7]} 8... g6 {[%clk 0:02:35.5]} 9. Bf3 {[%clk 0:02:19.5]} 9... Be6 {[%clk
0:02:23]} 10. Qd2 {[%clk 0:02:16.4]} 10... Bg7 {[%clk 0:02:21.8]} 11. O-O-O
{[%clk 0:02:16.1]} 11... O-O {[%clk 0:02:18.4]} 12. Be5 {[%clk 0:02:05.3]} 12...
Rfd8 {[%clk 0:02:15.4]} 13. h4 {[%clk 0:02:04.4]} 13... b5 {[%clk 0:02:12.4]}
14. h5 {[%clk 0:02:03.1]} 14... b4 {[%clk 0:02:11.6]} 15. Ne2 {[%clk 0:02:02.2]}
15... Qa4 {[%clk 0:01:58.7]} 16. Kb1 {[%clk 0:02:00.5]} 16... c4 {[%clk
0:01:24.5]} 17. b3 {[%clk 0:01:37.8]} 17... Qb5 {[%clk 0:01:23.6]} 18. Nf4
{[%clk 0:01:37.7]} 18... Bf5 {[%clk 0:01:21.1]} 19. Bxf6 {[%clk 0:01:30.2]}
19... exf6 {[%clk 0:00:47.5]} 20. g4 {[%clk 0:01:26.9]} 20... Bc8 {[%clk
0:00:21.2]} 21. hxg6 {[%clk 0:01:00.6]} 21... hxg6 {[%clk 0:00:21]} 22. e4
{[%clk 0:00:59.6]} 22... dxe4 {[%clk 0:00:20.2]} 23. Bxe4 {[%clk 0:01:00.5]}
23... Bxg4 {[%clk 0:00:15.4]} 24. Rdg1 {[%clk 0:00:59.7]} 24... Bf5 {[%clk
0:00:15.6]} 25. bxc4 {[%clk 0:00:55.3]} 25... Qd7 {[%clk 0:00:13.6]} 26. Bd5
{[%clk 0:00:50.5]} 26... Rab8 {[%clk 0:00:09.6]} 27. Nxg6 {[%clk 0:00:50.6]}
27... b3 {[%clk 0:00:08.8]} 28. axb3 {[%clk 0:00:25.4]} 28... Rxb3+ {[%clk
0:00:08.6]} 29. Kc1 {[%clk 0:00:26.1]} 29... Qa4 {[%clk 0:00:09]} 30. Rh8+
{[%clk 0:00:12.7]} 30... Bxh8 {[%clk 0:00:09.2]} 31. Qh6 {[%clk 0:00:12.2]}
31... Rb1+ {[%clk 0:00:07.6]} 32. Kd2 {[%clk 0:00:11]} 32... Qxc2+ {[%clk
0:00:07.9]} 33. Ke3 {[%clk 0:00:11.9]} 33... Rb3+ {[%clk 0:00:07.4]} 34. Kf4
{[%clk 0:00:11.7]} 34... Qxf2+ {[%clk 0:00:08]} 0-1

[Event "Early-Titled-Tuesday-Blitz-February-20-2024"]
[Site "Chess.com"]
[Date "2024.02.20"]
[Round "9"]
[White "tsaruk_maks"]
[Black "Huragan007"]
[Result "1-0"]
[WhiteElo "2750"]
[BlackElo "2609"]
[TimeControl "180+1"]
[EndTime "9:47:15 PST"]
[Termination "tsaruk_maks won by checkmate"]

1. e4 {[%clk 0:02:56]} 1... c5 {[%clk 0:02:59.9]} 2. Nf3 {[%clk 0:02:51.6]} 2...
d6 {[%clk 0:03:00.4]} 3. d4 {[%clk 0:02:50.8]} 3... cxd4 {[%clk 0:03:01.3]} 4.
Nxd4 {[%clk 0:02:50.4]} 4... Nf6 {[%clk 0:03:02]} 5. Nc3 {[%clk 0:02:50.4]} 5...
g6 {[%clk 0:03:02.7]} 6. Be3 {[%clk 0:02:49.7]} 6... Bg7 {[%clk 0:03:03.1]} 7.
Bc4 {[%clk 0:02:49.2]} 7... O-O {[%clk 0:03:01]} 8. f3 {[%clk 0:02:48.6]} 8...
Nc6 {[%clk 0:03:01.5]} 9. Qd2 {[%clk 0:02:48.9]} 9... Bd7 {[%clk 0:03:00.4]} 10.
Bb3 {[%clk 0:02:48.4]} 10... Na5 {[%clk 0:02:59.1]} 11. O-O-O {[%clk 0:02:48.2]}
11... Rb8 {[%clk 0:02:58.9]} 12. Kb1 {[%clk 0:02:46.1]} 12... b5 {[%clk
0:02:59.1]} 13. h4 {[%clk 0:02:46.5]} 13... Nc4 {[%clk 0:02:56.7]} 14. Bxc4
{[%clk 0:02:46.5]} 14... bxc4 {[%clk 0:02:57.6]} 15. Ka1 {[%clk 0:02:47]} 15...
Qb6 {[%clk 0:02:48.1]} 16. Rb1 {[%clk 0:02:46]} 16... Qb4 {[%clk 0:02:22.2]} 17.
Bh6 {[%clk 0:02:37.4]} 17... Bxh6 {[%clk 0:02:10.4]} 18. Qxh6 {[%clk 0:02:38.3]}
18... Rb6 {[%clk 0:02:03]} 19. h5 {[%clk 0:02:37.3]} 19... Ra6 {[%clk
0:01:44.8]} 20. hxg6 {[%clk 0:02:34.4]} 20... fxg6 {[%clk 0:01:45.7]} 21. f4
{[%clk 0:01:28]} 21... e5 {[%clk 0:00:59.6]} 22. Nf3 {[%clk 0:01:27.4]} 22...
Ba4 {[%clk 0:00:17.8]} 23. Nd5 {[%clk 0:01:21.9]} 23... Qb7 {[%clk 0:00:10]} 24.
Nxf6+ {[%clk 0:00:43.7]} 24... Rxf6 {[%clk 0:00:10.9]} 25. fxe5 {[%clk
0:00:43.4]} 25... Bxc2 {[%clk 0:00:10.6]} 26. a3 {[%clk 0:00:34.6]} 26... Rf7
{[%clk 0:00:07]} 27. e6 {[%clk 0:00:31.8]} 27... Re7 {[%clk 0:00:05]} 28. Nd4
{[%clk 0:00:08.6]} 28... Bxb1 {[%clk 0:00:05.4]} 29. Rf1 {[%clk 0:00:08.8]}
29... Qc8 {[%clk 0:00:03.6]} 30. Qg5 {[%clk 0:00:06.2]} 30... Rxe6 {[%clk
0:00:03.5]} 31. Nxe6 {[%clk 0:00:05.4]} 31... Bxe4 {[%clk 0:00:02.3]} 32. Qe7
{[%clk 0:00:03.3]} 32... Bf5 {[%clk 0:00:01.8]} 33. Qg7# {[%clk 0:00:03]} 1-0